Cogmind - Beta 13 @@@ ROGUE MODE // 2024.04.07 @ 00:25:43 Player: Metallia Result: Destroyed by as-80271 with Assembled Heavy Rifle Performance ------------- Evolutions (1) 500 Regions Visited (3) 600 Robots Destroyed (11) 55 Value Destroyed (203) 203 Prototype IDs (0) 0 Alien Tech Used (0) 0 Bonus (0) 0 TOTAL SCORE: 1358 Bonus ------- None Cogmind --------- Core Integrity 0/400 Matter 300/300 Energy 349/350 System Corruption 0% Temperature Cool (12) Movement Core (400) Ox7 Location -9/Mines Parts ------- > --- POWER (1) -------- (None) > --- PROPULSION (3) --- Flight Unit > --- UTILITY (3) ------ Large Storage Unit High-capacity Battery > --- WEAPON (2) ------- (None) > --- INVENTORY (15) --- Light Ion Engine Light Ion Engine Light Treads Flight Unit Large Storage Unit Large Matter Pod (80) Medium Laser Medium Laser Light Assault Rifle Grenade Launcher Datajack Peak State ------------ > --- POWER ------------ Light Ion Engine > --- PROPULSION ------- Light Treads Improved Treads Improved Treads > --- UTILITY ---------- Large Storage Unit High-capacity Matter Pod Light Armor Plating > --- WEAPON ----------- Medium Laser Medium Laser > --- INVENTORY -------- Light Treads Aluminum Leg Aluminum Leg Flight Unit Flight Unit Large Storage Unit High-capacity Battery Large Matter Pod Assault Rifle Assault Rifle Light Assault Rifle Grenade Launcher Datajack [Rating: 12] Favorites ----------- Power Light Ion Engine Engine Light Ion Engine Propulsion Improved Treads Treads Improved Treads Leg Aluminum Leg Flight Unit Flight Unit Utility High-capacity Matter Pod Storage High-capacity Matter Pod Protection Light Armor Plating Weapon Medium Laser Energy Gun Medium Laser Ballistic Gun Assault Rifle Build | -11 -10 -9 -9 ------- Run | Yrd Mat Mat Min Slots Evolved 2 | . . 2 . Power . | . . . . Propulsion 1 | . . 1 . Utility 1 | . . 1 . Weapon . | . . . . Parts Attached 23 | 6 5 2 10 Power 3 | 1 . . 2 Engine 3 | 1 . . 2 Core . | . . . . Reactor . | . . . . Propulsion 9 | 2 2 1 4 Treads 6 | 2 2 1 1 Leg 2 | . . . 2 Wheel . | . . . . Hover . | . . . . Flight 1 | . . . 1 Utility 7 | 1 3 1 2 Device . | . . . . Storage 6 | 1 3 . 2 Processor . | . . . . Hackware . | . . . . Protection 1 | . . 1 . Artifact . | . . . . Weapon 4 | 2 . . 2 Energy Gun 2 | 2 . . . Energy Cannon . | . . . . Ballistic Gun 2 | . . . 2 Ballistic Cannon . | . . . . Launcher . | . . . . Special Weapon . | . . . . Impact Weapon . | . . . . Slashing Weapon . | . . . . Piercing Weapon . | . . . . Special Melee Weapon . | . . . . Unidentified Prototypes . | . . . . Parts Lost 10 | . . . 10 Power 1 | . . . 1 Propulsion 5 | . . . 5 Utility 2 | . . . 2 Weapon 2 | . . . 2 Highest Loss Streak 9 | . . . 9 To Critical Strikes . | . . . . Average Slot Usage (%) 98 | . 98 100 96 Engine 12 | . 14 11 10 Treads 29 | . 28 33 30 Storage 27 | . 27 22 30 Protection 2 | . . 11 2 Energy Gun 18 | . 28 22 4 Ballistic Gun 6 | . . . 16 Naked Turns . | . . . . Heaviest Build 37 | 12 31 34 37 Greatest Support 66 | 40 46 66 66 Greatest Overweight (x) 7 | . . . 7 Average Overweight (x) . | . . . . Largest Inventory Capacity 15 | 8 15 15 15 Average Capacity 12 | 7 10 15 15 Most Carried 15 | 5 15 14 14 Average Carried 10 | 1 7 13 13 Final Capacity 15 | 8 15 15 15 Final Carried 15 | 2 15 13 11 Class Distribution -------------------- 100% | Mutant Dominant Class ---------------- Mutant | -10/Materials Mutant | -9/Materials Mutant | -9/Mines Resources | -11 -10 -9 -9 ----------- Run | Yrd Mat Mat Min Matter Collected 743 | 189 306 68 180 Remotely . | . . . . Salvage Created 248 | . 82 68 98 Parts 20 | . 12 2 6 Haulers Intercepted . | . . . . Recyclers Shooed 2 | . 2 . . Parts Field Recycled . | . . . . Retrieved Matter . | . . . . Parts Self-Destructed . | . . . . Prevented . | . . . . Kills | -11 -10 -9 -9 ------- Run | Yrd Mat Mat Min Combat Hostiles Destroyed 9 | . 6 1 2 Guns 8 | . 6 . 2 Classes Destroyed 5 | . 1 2 2 Worker 1 | . . . 1 Watcher 1 | . . 1 . Swarmer 6 | . 6 . . Grunt 2 | . . . 2 Sentry 1 | . . 1 . Best Kill Streak 3 | . 3 1 3 Combat Bots Only 3 | . 3 1 1 Max Kills in Single Turn 1 | . 1 1 1 Gunslinging . | . . . . Exploded . | . . . . Melee . | . . . . Uniques/NPCs Destroyed . | . . . . Combat | -11 -10 -9 -9 -------- Run | Yrd Mat Mat Min Hostile Shots Fired 151 | . 25 23 103 Missed 37 | . 2 6 29 Damage Taken 1813 | . 183 208 1422 Core 443 | . 34 48 361 Absorbed by Shields . | . . . . Core Remaining (%) 93 | 100 86 . . Volleys Fired 40 | . 10 9 21 Largest 2 | . 2 2 2 Hottest 100 | . 100 100 100 Shots Fired 80 | . 20 18 42 Gun 80 | . 20 18 42 Cannon . | . . . . Launcher . | . . . . Special . | . . . . Kinetic 28 | . . . 28 Thermal 52 | . 20 18 14 Explosive . | . . . . Electromagnetic . | . . . . Robot Hit Streak 14 | . 2 14 6 Robot Miss Streak 5 | . 5 1 3 Penetration Max . | . . . . Secondary Targets 1 | . . . 1 Max Gunslinging Chain 1 | . . . 1 Shots Hit Robots 47 | . 6 15 26 Core Hits 17 | . 8 2 7 Critical Kills . | . . . . Critical Parts Destroyed . | . . . . Critical Strikes 1 | . . . 1 Burn 1 | . . . 1 Melee Attacks . | . . . . Impact . | . . . . Slashing . | . . . . Piercing . | . . . . Sneak Attacks . | . . . . Combat Hostiles . | . . . . Follow-up Attacks . | . . . . Damage Inflicted 615 | . 89 187 339 Guns 613 | . 88 187 338 Cannons . | . . . . Explosions . | . . . . Melee . | . . . . Ramming 2 | . 1 . 1 Kinetic 222 | . . . 222 Thermal 391 | . 88 187 116 Explosive . | . . . . Electromagnetic . | . . . . Impact . | . . . . Slashing . | . . . . Piercing . | . . . . Highest Corruption 3 | . 3 . . Average Corruption 2 | . 2 . . Corruption Purged . | . . . . Corruption Blocked . | . . . . Effects 5 | . 5 . . Message Errors 1 | . 1 . . Matter Fused 2 | . 2 . . Energy Discharges 1 | . 1 . . Data Loss (minor) 1 | . 1 . . Overload Shots . | . . . . Overflow Damage . | . . . . Projectiles . | . . . . Explosions . | . . . . Melee . | . . . . Knockbacks . | . . . . Impact . | . . . . Kinetic . | . . . . Secondary . | . . . . Self-Inflicted Damage . | . . . . Shots . | . . . . Rammed 3 | . 3 . . Targets Rammed 4 | . 3 . 1 Kicked 1 | . . . 1 Crushed . | . . . . Highest Temperature 384 | . 156 384 299 Average Temperature 129 | . 67 173 144 Received Heat Transfer 373 | . . 72 301 Effects 3 | . . 2 1 Interference 3 | . . 2 1 Siege Activations . | . . . . Robots Corrupted . | . . . . Combat Hostiles . | . . . . Parts Fried . | . . . . Impact Corruptions . | . . . . Robots Melted 1 | . . 1 . Combat Hostiles 1 | . . 1 . Parts Melted 5 | . . 5 . Heat Transferred 1221 | . 259 555 407 Parts Sabotaged . | . . . . Parts Stolen . | . . . . Parts Stripped . | . . . . Power Chain Reactions . | . . . . Alert | -11 -10 -9 -9 ------- Run | Yrd Mat Mat Min Peak Influence 178 | . 178 82 86 Initial 31 | . . . 31 Average 64 | . 89 39 62 Maximum Alert Level . | . . . . Low Security (%) 100 | 100 100 100 100 Level 1 . | . . . . Level 2 . | . . . . Level 3 . | . . . . Level 4 . | . . . . Level 5 . | . . . . High Security . | . . . . Max Security . | . . . . Squads Dispatched . | . . . . Investigation . | . . . . Extermination . | . . . . Reinforcement . | . . . . Assault . | . . . . Garrison . | . . . . Intercept . | . . . . Searches Triggered . | . . . . Construction Impeded . | . . . . Haulers Reinforced . | . . . . Active Scanning Responses . | . . . . Cargo Convoy Interrupts . | . . . . Stealth | -11 -10 -9 -9 --------- Run | Yrd Mat Mat Min Distress Signals 1 | . . 1 . Communications Jammed . | . . . . Distress Signals . | . . . . Times Spotted 28 | . 10 5 13 Peak Tracking Total 8 | . 3 4 8 Tactical Retreats 1 | . 1 . . Traps | -11 -10 -9 -9 ------- Run | Yrd Mat Mat Min Traps Triggered 2 | . 2 . . Indirectly . | . . . . Trap Hack Attempts . | . . . . Triggered . | . . . . Disarmed . | . . . . Reprogrammed . | . . . . Reused . | . . . . Traps Extracted . | . . . . Installed . | . . . . Triggered 1 | . . . 1 Machines | -11 -10 -9 -9 ---------- Run | Yrd Mat Mat Min Machines Disabled . | . . . . Max in Single Turn . | . . . . Machines Repaired . | . . . . Machines Dismantled . | . . . . Machines Sabotaged . | . . . . Overloaded Fab Kills . | . . . . Hacking | -11 -10 -9 -9 --------- Run | Yrd Mat Mat Min Machines Accessed 3 | . 2 1 . Terminals 2 | . 2 . . Fabricators . | . . . . Repair Stations . | . . . . Recycling Units 1 | . . 1 . Scanalyzers . | . . . . Garrison Access . | . . . . Total Hacks 4 | . 3 1 . Successful 3 | . 2 1 . Failed 1 | . 1 . . Catastrophic . | . . . . Database Lockouts . | . . . . Manual . | . . . . Terminals 3 | . 3 . . Fabricators . | . . . . Repair Stations . | . . . . Recycling Units 1 | . . 1 . Scanalyzers . | . . . . Garrison Access . | . . . . Terminal Hacks 2 | . 2 . . Recycling Unit Index 1 | . 1 . . Maintenance Status 1 | . 1 . . Fabricator Hacks . | . . . . Repair Station Hacks . | . . . . Recycling Unit Hacks 1 | . . 1 . Report Inventory 1 | . . 1 . Scanalyzer . | . . . . Garrison Access Hacks . | . . . . Unauthorized Hacks . | . . . . Terminals . | . . . . Fabricators . | . . . . Repair Stations . | . . . . Recycling Units . | . . . . Scanalyzers . | . . . . Garrison Access . | . . . . Data Cores Recovered . | . . . . Used . | . . . . Hacking Detections 2 | . 2 . . Full Trace Events . | . . . . Feedback Events . | . . . . Feedback Blocked . | . . . . Robot Schematics Acquired . | . . . . Robots Built . | . . . . Authchips . | . . . . Time . | . . . . Total Robot Build Rating . | . . . . Part Schematics Acquired . | . . . . Parts Built . | . . . . Authchips . | . . . . Time . | . . . . Total Part Build Rating . | . . . . Parts Repaired . | . . . . Time . | . . . . Parts Recycled . | . . . . Recycled Matter . | . . . . Retrieved Matter . | . . . . Retrieved Components . | . . . . Parts Scanalyzed . | . . . . Part Schematics Acquired . | . . . . Parts Damaged . | . . . . Bothacking | -11 -10 -9 -9 ------------ Run | Yrd Mat Mat Min Used RIF Installer . | . . . . Robots Hacked . | . . . . Non-combat . | . . . . Combat . | . . . . Robot Hacks Applied . | . . . . Relay Couplers Released . | . . . . Fabnet Peak Effective % . | . . . . Robots Rewired . | . . . . Allies Hacked . | . . . . Hacks Repelled . | . . . . Allies | -11 -10 -9 -9 -------- Run | Yrd Mat Mat Min Total Allies . | . . . . Largest Group . | . . . . Highest-Rated Group . | . . . . Highest-Rated Ally . | . . . . Total Orders . | . . . . Ally Attacks . | . . . . Total Damage . | . . . . Kills . | . . . . Allies Corrupted . | . . . . Allies Melted 1 | . . . 1 Intel | -11 -10 -9 -9 ------- Run | Yrd Mat Mat Min Robot Analysis Total . | . . . . Derelict Logs Recovered . | . . . . Drone Launches . | . . . . Drone Recoveries . | . . . . Exploration | -11 -10 -9 -9 ------------- Run | Yrd Mat Mat Min Turns Passed 1042 | 83 426 189 344 Spaces Moved 553 | 59 230 101 163 Core 23 | 22 . . 1 Treads 524 | 37 230 101 156 Legs 6 | . . . 6 Wheels . | . . . . Hover . | . . . . Flight . | . . . . Fastest Speed 50 | 50 160 160 160 Average Speed 156 | 118 160 160 163 Slowest Speed 400 | 160 160 160 400 Overloaded Moves . | . . . . Propulsion Burnouts . | . . . . Robots Hopped . | . . . . Cave-ins Triggered . | . . . . Exploration Rate (%) 22 | 3 36 15 36 Regions Visited 3 Branch Regions 1 Pre-discovered Areas . | . . . . Known Exits Taken . | . . . . Unknown Exits Taken 3 | 1 1 1 . Scrap Searched . | . . . . Spaces Dug . | . . . . Terrain Destroyed . | . . . . Melee . | . . . . Projectile . | . . . . AOE . | . . . . Terrain Rammed . | . . . . Walls Destroyed . | . . . . Machines Disabled . | . . . . Actions | -11 -10 -9 -9 --------- Run | Yrd Mat Mat Min Total 645 | 72 265 111 197 Wait . | . . . . Move 550 | 58 229 100 163 Hop . | . . . . Pick Up 26 | 8 16 . 2 Fast Attach . | . . . . Attach 13 | 6 1 2 4 Detach . | . . . . Swap 10 | . 4 . 6 Drop 2 | . 2 . . Fire 40 | . 10 9 21 Melee . | . . . . Ram . | . . . . Kick 1 | . . . 1 Crush 3 | . 3 . . Escape Stasis . | . . . . Rewire . | . . . . Trap . | . . . . Miscellaneous . | . . . . Route ------- -11/Scrapyard -10/Materials (discovered 2 exits: *Mat / [*Min]) -9/Materials -9/Mines History --------- Turn | Location | Event 9 | -11/Scrapyard | Discovered new exit (range 16) 84 | -11/Scrapyard | Entered Materials 271 | -10/Materials | Discovered new exit (range 14) 318 | -10/Materials | Build established: Mutant 503 | -10/Materials | Discovered new exit (range 3) 510 | -10/Materials | Entered another Materials area 510 | -9/Materials | Evolved 2 slots: Propulsion x1, Utility x1 645 | -9/Materials | Discovered new exit (range 13) 699 | -9/Materials | Entered Mines 986 | -9/Mines | Assembled infested the area 991 | -9/Mines | Assisted by a Guerilla fighting off Assembled 1019 | -9/Mines | Core integrity fell below 50% 1041 | -9/Mines | Core integrity fell below 20% 1043 | -9/Mines | Destroyed by as-80271 with Assembled Heavy Rifle Last Messages --------------- The unstable cave ceiling collapses. Ion Engine destroyed. D-53 Grenadier destroyed. The unstable cave ceiling collapses. Assault Rifle destroyed. The unstable cave ceiling collapses. Imp. Treads destroyed. Assault Rifle destroyed. U-05 Engineer lays Concrete. Flying robots can pass through spaces occupied by others, even hostile robots. U-05 Engineer lays Concrete. Acquired 41 matter. U-05 Engineer lays Concrete. Aluminum Leg destroyed. U-05 Engineer lays Concrete. Kicked U-05 Engineer. Hcp. Matter Pod destroyed. Aluminum Leg destroyed. Acquired 41 matter. Map ----- +----------------------------------------------------+ | | | | | ?????????????????????????????????????????? | | #######??????????????????????????????????? | | #??????????????????????????????????? | | " """ #??????????????????????????????????? | | " """ #??????????????????????????????????? | | " """ #??????????????????????????????????? | | " """ #??????????????????????????????????? | | #??????????????????????????????????? | | " """ #??????????????????????????????????? | | " """ #??????????????????????????????????? | | " """ #??????????????????????????????????? | | " """ #??????????????????????????????????? | | = #??????????????????????????????????? | | = #??????????????????????????????????? | | #######?????????????????#????????????????? | | ????????????????????????###??????????????? | | ???????????????????????? #??????????????? | | ????????????????????????#%#??????????????? | | ???####?????????????????# #??????????????? | | ??## ###???????????????# #??????????????? | | ??# ##??????????????#u#??????????????? | | ??# #??????????????# #??????????????? | | ??# #????????????###%#??????????????? | | #?# #???????###??#"#@######?????????? | | ##?# #???????# ??##=!a ##????????? | | ### ######??# #??# aa ##???????? | | ## ##?# #?## ##??????? | | ### ### a ###????? | | ## ## #????? | | ## ### #???? | | ?## ##?## =* #???? | | ??####???# ##%### # # #???? | | ?????????## ### #?#a a # ##? #???? | | ??????????#####?# ## ### ###???#???? | | ???????????????? #?######?????????? | | ???????????????? a #????????????????? | | ??????????????? a ##????????????????? | | ?????????????? ###?????????????????? | | ????????????? #????????????????????? | | ???????????? #?????????????????????? | | ???????????? #?????????????????????? | | ????????????### #?????????????????????? | | ??????????????# ?????????????????????? | | ???????????????# ?????????????????????? | | ????????????????####?????????????????????? | | ?????????????????????????????????????????? | | ?????????????????????????????????????????? | | ?????????????????????????????????????????? | +----------------------------------------------------+ Best States ------------- Heat Dissipation 28 Energy Generation 10 Energy Capacity 500 Matter Stores 500 Matter Capacity 500 Sight Range 16 Terrain Scan Density 10 Armor Coverage 150 Evasion (%) 50 Recoil Reduction 3 Item Schematics ----------------- None Robot Schematics ------------------ None Fabricated ------------ Nothing Alien Tech Used ----------------- None Achievements -------------- It's Just You Challenges ------------ None Game ------ Seed ProtonBombardmentSink Manual? 0 Play Time 00:13:28 Cumulative 2.3 hours Start 2024.04.07 @ 00:13:00 End 2024.04.07 @ 00:25:43 Sessions 1 Manual Loads 0 Difficulty Rogue Special Mode None Game No. 5 Rogue 5 Adventurer 0 Explorer 0 Win Type - Total 0 Types 0/0/0/0/0/0/0/0/0 Lore% 2 Gallery% 6 Achievement% 7 Wizard Run 0 Options --------- Layout 1 ASCII 0 Keyboard 0 Movement Arrows Keybinds 0 Fullscreen 1 Font 32/SmallcapsGlow Map View 77x35 Zoom Use 0% Tactical HUD 0 Map Filters NONE Filters NONE Steam 1 RUN: 20597502-a92c-4a65-b4c9-7151404eb273